fUST/lending_fUST_20250425
["ID","MTS","AMOUNT","RATE_DAILY","PERIOD"]
[358902063,1745536245879,-500.0,0.00016712,2]
[358902064,1745536245891,-500.0,0.00016712,2]
[358902065,1745536245901,-500.0,0.00016712,2]
[358902066,1745536245911,-500.0,0.00016712,2]
[358902067,1745536245921,-500.0,0.00016712,2]
[358902068,1745536245930,-883.11,0.00016712,2]
[358902069,1745536245943,-500.0,0.00016712,2]
[358902070,1745536245953,-500.0,0.00016712,2]
[358902071,1745536245963,-554.94,0.00016712,2]
[358902072,1745536245974,-500.0,0.00016712,2]
[358902073,1745536245983,-500.0,0.00016712,2]
[358902074,1745536245993,-500.0,0.00016712,2]
[358902075,1745536246003,-500.0,0.00016712,2]
[358902076,1745536246012,-1107.49,0.00016712,2]
[358902077,1745536246022,-1018.19,0.00016712,2]
[358902078,1745536246033,-500.0,0.00016712,2]
[358902079,1745536246042,-500.0,0.00016712,2]
[358902080,1745536246051,-500.0,0.00016712,2]
[358902081,1745536246061,-537.61,0.00016712,2]
[358902083,1745536246071,-500.0,0.00016712,2]
[358902084,1745536246081,-500.0,0.00016712,2]
[358902085,1745536246091,-500.0,0.00016712,2]
[358902086,1745536246102,-2598.86,0.00016712,2]
[358902087,1745536246111,-500.0,0.00016712,2]
[358902088,1745536246121,-500.0,0.00016712,2]
[358902089,1745536246130,-500.0,0.00016712,2]
[358902090,1745536246141,-500.0,0.00016712,2]
[358902091,1745536246150,-500.0,0.00016712,2]
[358902092,1745536246160,-964.81,0.00016712,2]
[358902093,1745536246170,-500.0,0.00016712,2]
[358902094,1745536246182,-500.0,0.00016712,2]
[358902095,1745536246191,-500.0,0.00016712,2]
[358902097,1745536246200,-500.0,0.00016712,2]
[358902098,1745536246210,-500.0,0.00016712,2]
[358902099,1745536246219,-500.0,0.00016712,2]
[358902100,1745536246228,-500.0,0.00016712,2]
[358902101,1745536246237,-904.43,0.00016712,2]
[358902102,1745536246247,-500.0,0.00016712,2]
[358902103,1745536246256,-500.0,0.00016712,2]
[358902104,1745536246266,-500.0,0.00016712,2]
[358902105,1745536246275,-500.0,0.00016712,2]
[358902106,1745536246285,-713.72,0.00016712,2]
[358902107,1745536246296,-947.2,0.00016712,2]
[358902108,1745536246307,-500.0,0.00016712,2]
[358902109,1745536246317,-500.0,0.00016712,2]
[358902110,1745536246327,-555.99,0.00016712,2]
[358902111,1745536246338,-976.72,0.00016712,2]
[358902112,1745536246347,-500.0,0.00016712,2]
[358902113,1745536246357,-961.9,0.00016712,2]
[358902114,1745536246367,-674.2,0.00016712,2]
[358902115,1745536246378,-500.0,0.00016712,2]
[358902116,1745536246387,-527.64,0.00016712,2]
[358902117,1745536246397,-1034.93,0.00016712,2]
[358902118,1745536246407,-613.93958788,0.00016712,2]
[358902119,1745536246417,-500.0,0.00016712,2]
[358902120,1745536246427,-500.0,0.00016712,2]
[358902121,1745536246438,-500.0,0.00016712,2]
[358902122,1745536246448,-500.0,0.00016712,2]
[358902123,1745536246457,-500.0,0.00016712,2]
[358902124,1745536246467,-500.0,0.00016712,2]
[358902125,1745536246477,-569.63,0.00016712,2]
[358902126,1745536246488,-576.33,0.00016712,2]
[358902127,1745536246498,-500.0,0.00016712,2]
[358902129,1745536246508,-615.03,0.00016712,2]
[358902130,1745536246518,-500.0,0.00016712,2]
[358902131,1745536246528,-500.0,0.00016712,2]
[358902132,1745536246538,-4109.9,0.00016712,2]
[358902133,1745536246549,-812.68,0.00016712,2]
[358902134,1745536246560,-500.0,0.00016712,2]
[358902135,1745536246571,-500.0,0.00016712,2]
[358902136,1745536246581,-500.0,0.00016712,2]
[358902137,1745536246592,-710.59,0.00016712,2]
[358902138,1745536246602,-500.0,0.00016712,2]
[358902139,1745536246612,-500.0,0.00016712,2]
[358902140,1745536246622,-168.18,0.00016712,2]
[358902141,1745536246632,-500.0,0.00016712,2]
[358902142,1745536246641,-766.91,0.00016712,2]
[358902143,1745536246651,-500.0,0.00016712,2]
[358902144,1745536246661,-500.0,0.00016712,2]
[358902145,1745536246671,-500.0,0.00016712,2]
[358902146,1745536246681,-7981.74,0.00016712,2]
[358902147,1745536246691,-565.67827842,0.00016712,2]
[358902148,1745536246700,-500.0,0.00016712,2]
[358902149,1745536246710,-500.0,0.00016712,2]
[358902150,1745536246719,-572.40871318,0.00016712,2]
[358902151,1745536246729,-500.0,0.00016712,2]
[358902152,1745536246738,-500.0,0.00016712,2]
[358902153,1745536246748,-500.0,0.00016712,2]
[358902154,1745536246757,-500.0,0.00016712,2]
[358902155,1745536246767,-507.59808948,0.00016712,2]
[358902156,1745536246777,-522.81,0.00016712,2]
[358902157,1745536246788,-500.0,0.00016712,2]
[358902158,1745536246798,-500.0,0.00016712,2]
[358902159,1745536246808,-2488.22,0.00016712,2]
[358902160,1745536246818,-500.0,0.00016712,2]
[358902161,1745536246829,-524.37,0.00016712,2]
[358902162,1745536246839,-1173.91,0.00016712,2]
[358902163,1745536246850,-381.86330291,0.00016712,2]
[358902164,1745536246860,-500.0,0.00016712,2]
[358902165,1745536246871,-500.0,0.00016712,2]
[358902166,1745536246882,-500.0,0.00016712,2]
[358902167,1745536246892,-500.0,0.00016712,2]
[358902168,1745536246902,-500.0,0.00016712,2]
[358902169,1745536246912,-500.0,0.00016712,2]
[358902170,1745536246921,-807.77,0.00016712,2]
[358902171,1745536246933,-1216.4,0.00016712,2]
[358902172,1745536246947,-500.0,0.00016712,2]
[358902173,1745536246959,-483.12060084,0.00016712,2]
[358902174,1745536246969,-500.0,0.00016712,2]
[358902175,1745536246979,-500.0,0.00016712,2]
[358902176,1745536246992,-590.15,0.00016712,2]
[358902177,1745536247005,-500.0,0.00016712,2]
[358902178,1745536247017,-2405.99,0.00016712,2]
[358902179,1745536247027,-500.0,0.00016712,2]
[358902180,1745536247038,-956.12,0.00016712,2]
[358902181,1745536247049,-500.0,0.00016712,2]
[358902182,1745536247060,-5656.91,0.00016712,2]
[358902183,1745536247070,-500.0,0.00016712,2]
[358902184,1745536247080,-500.0,0.00016712,2]
[358902185,1745536247090,-500.0,0.00016712,2]
[358902186,1745536247100,-860.4,0.00016712,2]
[358902187,1745536247109,-806.16,0.00016712,2]
[358902188,1745536247119,-2303.11,0.00016712,2]
[358902189,1745536247129,-500.0,0.00016712,2]
[358902190,1745536247139,-500.0,0.00016712,2]
[358902191,1745536247149,-500.0,0.00016712,2]
[358902192,1745536247159,-647.11,0.00016712,2]
[358902193,1745536247169,-500.0,0.00016712,2]
[358902194,1745536247179,-593.45,0.00016712,2]
[358902195,1745536247190,-684.6,0.00016712,2]
[358902196,1745536247199,-2610.94,0.00016712,2]
[358902197,1745536247383,-600.60174823,0.00016712,2]
[358902198,1745536247394,-500.0,0.00016712,2]
[358902199,1745536247403,-500.0,0.00016712,2]
[358902200,1745536247413,-500.0,0.00016712,2]
[358902201,1745536247423,-500.0,0.00016712,2]
[358902202,1745536247433,-500.0,0.00016712,2]
[358902203,1745536247444,-500.0,0.00016712,2]
[358902204,1745536247453,-500.0,0.00016712,2]
[358902205,1745536247463,-500.0,0.00016712,2]
[358902206,1745536247474,-2220.41,0.00016712,2]
[358902207,1745536247486,-500.0,0.00016712,2]
[358902208,1745536247496,-3678.26,0.00016712,2]
[358902209,1745536247506,-500.0,0.00016712,2]
[358902210,1745536247515,-500.0,0.00016712,2]
[358902211,1745536247525,-500.0,0.00016712,2]
[358902212,1745536247534,-188.2337856,0.00016712,2]
[358902213,1745536247543,-638.82,0.00016712,2]
[358902214,1745536247552,-500.0,0.00016712,2]
[358902215,1745536247561,-500.0,0.00016712,2]
[358902216,1745536247569,-669.98,0.00016712,2]
[358902217,1745536247578,-794.15,0.00016712,2]
[358902218,1745536247587,-500.0,0.00016712,2]
[358902219,1745536247596,-264.54984897,0.00016712,2]
[358902220,1745536247605,-500.0,0.00016712,2]
[358902221,1745536247614,-500.0,0.00016712,2]
[358902222,1745536247623,-500.0,0.00016712,2]
[358902223,1745536247633,-500.0,0.00016712,2]
[358902224,1745536247643,-500.0,0.00016712,2]
[358902225,1745536247653,-419.51327363,0.00016712,2]
[358902226,1745536247662,-500.0,0.00016712,2]
[358902227,1745536247671,-500.0,0.00016712,2]
[358902228,1745536247681,-1035.58,0.00016712,2]
[358902229,1745536247690,-500.0,0.00016712,2]
[358902230,1745536247700,-500.0,0.00016712,2]
[358902231,1745536247709,-500.0,0.00016712,2]
[358902232,1745536247720,-500.0,0.00016712,2]
[358902233,1745536247729,-500.0,0.00016712,2]
[358902234,1745536247739,-500.0,0.00016712,2]
[358902235,1745536247749,-500.0,0.00016712,2]
[358902236,1745536247759,-936.47,0.00016712,2]
[358902237,1745536247768,-500.0,0.00016712,2]
[358902238,1745536247777,-500.0,0.00016712,2]
[358902239,1745536247788,-2069.31,0.00016712,2]
[358902240,1745536247799,-500.0,0.00016712,2]
[358902241,1745536247811,-500.0,0.00016712,2]
[358902242,1745536247821,-500.0,0.00016712,2]
[358902243,1745536247832,-644.26,0.00016712,2]
[358902244,1745536247843,-500.0,0.00016712,2]
[358902245,1745536247856,-500.0,0.00016712,2]
[358902246,1745536247868,-466.69000777,0.00016712,2]
[358902247,1745536247877,-576.06271575,0.00016712,2]
[358902248,1745536247888,-585.78,0.00016712,2]
[358902249,1745536247898,-2823.65,0.00016712,2]
[358902250,1745536247907,-531.12,0.00016712,2]
[358902251,1745536247916,-505.54032481,0.00016712,2]
[358902252,1745536247926,-136.75239562,0.00016712,2]
[358902253,1745536248134,-363.24760438,0.00016712,2]
[358902254,1745536248144,-186.03934018,0.00016712,2]
[358902255,1745536248828,-500.0,0.00015039,2]
[358902256,1745536248839,-500.0,0.00015039,2]
[358902257,1745536248851,-633.68238011,0.0001504,2]
[358902258,1745536248862,-313.96065982,0.00016712,2]
[358902259,1745536248873,-500.0,0.00016712,2]
[358902260,1745536248883,-604.12,0.00016712,2]
[358902261,1745536248894,-506.66075598,0.00016712,2]
[358902262,1745536248904,-500.0,0.00016712,2]
[358902263,1745536248914,-2085.02951457,0.00016712,2]
[358902264,1745536248926,-302.09048543,0.00016712,2]
[358902265,1745536248936,-2461.31,0.00016712,2]
[358902266,1745536248949,-500.0,0.00016712,2]
[358902267,1745536248959,-500.0,0.00016712,2]
[358902268,1745536248969,-687.16,0.00016712,2]
[358902269,1745536248985,-500.0,0.00016712,2]
[358902270,1745536248995,-500.0,0.00016712,2]
[358902271,1745536249005,-500.0,0.00016712,2]
[358902272,1745536249016,-500.0,0.00016712,2]
[358902273,1745536249027,-777.14,0.00016712,2]
[358902274,1745536249038,-500.0,0.00016712,2]
[358902275,1745536249048,-500.0,0.00016712,2]
[358902276,1745536249058,-500.0,0.00016712,2]
[358902277,1745536249320,-500.0,0.00016712,2]
[358902278,1745536249331,-1871.11,0.00016712,2]
[358902279,1745536249341,-5380.61,0.00016712,2]
[358902280,1745536249352,-966.16,0.00016712,2]
[358902281,1745536249362,-1245.64,0.00016712,2]
[358902282,1745536249373,-500.0,0.00016712,2]
[358902283,1745536249383,-731.85,0.00016712,2]
[358902284,1745536249394,-500.0,0.00016712,2]
[358902285,1745536249404,-500.0,0.00016712,2]
[358902286,1745536249415,-500.0,0.00016712,2]
[358902287,1745536249425,-625.62,0.00016712,2]
[358902288,1745536249435,-599.58,0.00016712,2]
[358902289,1745536249445,-699.41,0.00016712,2]
[358902290,1745536249456,-426.25412099,0.00016712,2]
[358902291,1745536249663,-500.0,0.00015039,2]
[358902292,1745536249673,-310.78153148,0.00015039,2]
[358902293,1745536249683,-500.0,0.00015039,2]
[358902294,1745536249693,-500.0,0.00015039,2]
[358902295,1745536249703,-479.01284122,0.00015039,2]
[358902301,1745536747316,-200.02024943,0.00015033,2]
[358902303,1745536804192,-152.0,0.00015033,2]
[358902304,1745536810339,-148.0,0.00015033,2]
[358902305,1745536813742,-300.0,0.00015033,2]
[358902306,1745536833417,200.0,0.000247,30]
[358902307,1745536836408,-162.0,0.00015033,2]
[358902308,1745536863130,-174.10929467,0.00015032,2]
[358902309,1745536868734,-125.89070533,0.00015032,2]
[358902311,1745536925744,-156.06766925,0.00015032,2]
[358902312,1745536955317,-143.93233075,0.00015032,2]
[358902313,1745536955357,-8.06766925,0.00015032,2]
[358902314,1745536960624,-300.0,0.00015032,2]
[358902315,1745536965974,-287.92959457,0.00015032,2]
[358902316,1745536966014,-180.26243788,0.00015032,2]
[358902317,1745536966060,-329.24435643,0.00015032,2]
[358902318,1745536974294,-170.75564357,0.00015032,2]
[358902319,1745536974345,-0.47796009,0.00015032,2]
[358902320,1745536979867,-182.23678652,0.00015032,2]
[358902321,1745536985867,-152.74547218,0.00015031,2]
[358902322,1745536989309,-147.25452782,0.00015031,2]
[358902323,1745536989362,-30.61676279,0.00015032,2]
[358902324,1745537044496,-180.50963385,0.00015031,2]
[358902325,1745537048623,-38.49036615,0.00015031,2]
[358902326,1745537076391,-239.71729108,0.00015031,2]
[358902327,1745537077116,-231.63368375,0.00015031,2]
[358902328,1745537077153,-8.08360733,0.00015031,2]
[358902329,1745537082092,-221.79234277,0.00015031,2]
[358902330,1745537086225,-78.19171915,0.00015031,2]
[358902331,1745537086274,-146.58876162,0.00015031,2]
[358902332,1745537092085,-353.41123838,0.00015031,2]
[358902333,1745537092129,-146.58876162,0.00015031,2]
[358902334,1745537096536,-157.87000392,0.00015031,2]
[358902336,1745537102583,-195.54123446,0.00015031,2]
[358902337,1745537102632,-104.45876554,0.00015031,2]
[358902346,1745537109611,-201.79591225,0.0001503,2]
[358902347,1745537114760,-98.20408775,0.0001503,2]
[358902348,1745537114804,-116.9497649,0.0001503,2]
[358902355,1745537247119,-183.0502351,0.0001503,2]
[358902356,1745537247324,-500.0,0.00015177,2]
[358902357,1745537247350,-6744.1990578,0.00015178,2]
[358902358,1745537247373,-273.735009,0.00015214,2]
[358902359,1745537247395,-293.4669158,0.00016073,2]
[358902360,1745537247419,-300.0,0.00016126,2]
[358902361,1745537247441,-949.43289106,0.00016127,2]
[358902363,1745537253219,280.27,0.00025,30]
[358902376,1745537345108,-329.94568238,0.00015176,2]
[358902377,1745537345146,-500.0,0.00015176,2]
[358902378,1745537345188,-500.0,0.00015176,2]
[358902379,1745537345224,-500.0,0.00015176,2]
[358902380,1745537345259,-500.0,0.00015176,2]
[358902381,1745537345294,-500.0,0.00015176,2]
[358902382,1745537345330,-500.0,0.00015176,2]
[358902383,1745537345367,-500.0,0.00015176,2]
[358902384,1745537345405,-500.0,0.00015176,2]
[358902385,1745537345441,-500.0,0.00015176,2]
[358902386,1745537345476,-500.0,0.00015176,2]
[358902387,1745537345510,-500.0,0.00015176,2]
[358902388,1745537345545,-500.0,0.00015176,2]
[358902389,1745537345583,-500.0,0.00015176,2]
[358902390,1745537345621,-89.08165471,0.00015176,2]
[358902488,1745537431909,-1380.95159138,0.00015077,2]
[358902489,1745537431919,-300.0,0.00015175,2]
[358902490,1745537431930,-410.91834529,0.00015176,2]
[358902491,1745537431940,-500.0,0.00015176,2]
[358902492,1745537431950,-500.0,0.00015176,2]
[358902493,1745537431960,-500.0,0.00015176,2]
[358902494,1745537431970,-500.0,0.00015176,2]
[358902495,1745537431979,-528.48812627,0.00015176,2]
[358902496,1745537431989,-386.35776787,0.00015176,2]
[358902497,1745537432001,-113.64223213,0.00015176,2]
[358902498,1745537432012,-500.0,0.00015176,2]
[358902499,1745537432021,-253.66457287,0.00015176,2]
[358902500,1745537432033,-246.33542713,0.00015176,2]
[358902501,1745537432043,-50.80215499,0.00015176,2]
[358902502,1745537432055,-449.19784501,0.00015176,2]
[358902503,1745537432065,-500.0,0.00015176,2]
[358902504,1745537432074,-160.91707324,0.00016028,2]
[358902505,1745537432084,-2066.79450376,0.00016127,2]
[358902519,1745537437675,-1096.61067712,0.00016127,2]
[358902520,1745537438177,-29750.41354276,0.00016127,2]
[358902521,1745537438191,-151.0,0.00016128,2]
[358902522,1745537438200,-207.4,0.00016128,2]
[358902523,1745537438210,-317263.24031805,0.00016138,2]
[358902524,1745537438220,-500.0,0.00016173,2]
[358902525,1745537438230,-500.0,0.00016173,2]
[358902526,1745537438240,-500.0,0.00016173,2]
[358902527,1745537438250,-500.0,0.00016173,2]
[358902528,1745537438259,-534.44279293,0.00016173,2]
[358902529,1745537438269,-496.54702232,0.00016173,2]
[358902530,1745537438279,-455.78386905,0.00016173,2]
[358902531,1745537438289,-293.46691576,0.00016208,2]
[358902532,1745537438298,-293.46691576,0.00016343,2]
[358902533,1745537438308,-152.0,0.00016397,2]
[358902534,1745537438317,-695.99,0.00016438,2]
[358902535,1745537438328,-500.0,0.00016438,2]
[358902536,1745537438337,-500.35,0.00016438,2]
[358902537,1745537438347,-500.0,0.00016438,2]
[358902538,1745537438357,-524.27470882,0.00016438,2]
[358902539,1745537438367,-500.0,0.00016438,2]
[358902540,1745537438376,-500.0,0.00016438,2]
[358902541,1745537438386,-500.0,0.00016438,2]
[358902542,1745537438396,-500.0,0.00016438,2]
[358902543,1745537438407,-500.0,0.00016438,2]
[358902544,1745537438416,-500.0,0.00016438,2]
[358902545,1745537438426,-500.0,0.00016438,2]
[358902546,1745537438438,-1079.91,0.00016438,2]
[358902547,1745537438447,-500.0,0.00016438,2]
[358902548,1745537438457,-500.0,0.00016438,2]
[358902549,1745537438479,-500.0,0.00016438,2]
[358902550,1745537438490,-500.0,0.00016438,2]
[358902551,1745537438501,-500.0,0.00016438,2]
[358902552,1745537438511,-500.0,0.00016438,2]
[358902553,1745537438522,-2678.07,0.00016438,2]
[358902554,1745537438532,-500.0,0.00016438,2]
[358902555,1745537438543,-500.0,0.00016438,2]
[358902556,1745537438553,-500.0,0.00016438,2]
[358902557,1745537438563,-291.16103928,0.00016438,2]
[358902558,1745537438574,-504.08410395,0.00016438,2]
[358902559,1745537438584,-500.0,0.00016438,2]
[358902560,1745537438595,-500.0,0.00016438,2]
[358902561,1745537438605,-500.0,0.00016438,2]
[358902562,1745537438615,-500.0,0.00016438,2]
[358902563,1745537438625,-500.0,0.00016438,2]
[358902564,1745537438639,-500.0,0.00016438,2]
[358902565,1745537438650,-500.0,0.00016438,2]
[358902566,1745537438660,-683.98,0.00016438,2]
[358902567,1745537438671,-500.0,0.00016438,2]
[358902568,1745537438681,-600.35,0.00016438,2]
[358902569,1745537438692,-500.0,0.00016438,2]
[358902570,1745537438703,-921.82,0.00016438,2]
[358902571,1745537438715,-644.6384403,0.00016438,2]
[358902572,1745537438725,-500.0,0.00016438,2]
[358902573,1745537438735,-500.0,0.00016438,2]
[358902574,1745537438745,-505.65,0.00016438,2]
[358902575,1745537438755,-500.0,0.00016438,2]
[358902576,1745537438765,-991.8,0.00016438,2]
[358902577,1745537438775,-500.0,0.00016438,2]
[358902578,1745537438785,-500.0,0.00016438,2]
[358902579,1745537438795,-500.0,0.00016438,2]
[358902580,1745537438805,-500.0,0.00016438,2]
[358902581,1745537438815,-500.0,0.00016438,2]
[358902582,1745537438825,-500.0,0.00016438,2]
[358902583,1745537438835,-500.0,0.00016438,2]
[358902584,1745537438844,-500.0,0.00016438,2]
[358902585,1745537438854,-500.0,0.00016438,2]
[358902586,1745537438864,-500.0,0.00016438,2]
[358902587,1745537438875,-500.0,0.00016438,2]
[358902588,1745537438885,-744.49,0.00016438,2]
[358902589,1745537438894,-500.0,0.00016438,2]
[358902590,1745537438904,-500.0,0.00016438,2]
[358902591,1745537438914,-500.0,0.00016438,2]
[358902592,1745537438924,-500.0,0.00016438,2]
[358902593,1745537438936,-500.0,0.00016438,2]
[358902594,1745537438947,-500.0,0.00016438,2]
[358902595,1745537438957,-500.0,0.00016438,2]
[358902596,1745537438967,-500.0,0.00016438,2]
[358902597,1745537438977,-500.0,0.00016438,2]
[358902598,1745537438987,-500.0,0.00016438,2]
[358902599,1745537438997,-500.0,0.00016438,2]
[358902600,1745537439007,-500.0,0.00016438,2]
[358902601,1745537439017,-500.0,0.00016438,2]
[358902602,1745537439026,-932.33,0.00016438,2]
[358902603,1745537439036,-500.0,0.00016438,2]
[358902604,1745537439045,-500.0,0.00016438,2]
[358902605,1745537439055,-500.0,0.00016438,2]
[358902606,1745537439065,-500.0,0.00016438,2]
[358902607,1745537439074,-500.0,0.00016438,2]
[358902608,1745537439085,-500.0,0.00016438,2]
[358902609,1745537439095,-512.18514062,0.00016438,2]
[358902610,1745537439104,-500.0,0.00016438,2]
[358902611,1745537439114,-502.15811695,0.00016438,2]
[358902612,1745537439123,-500.0,0.00016438,2]
[358902613,1745537439133,-509.491473,0.00016438,2]
[358902614,1745537439143,-500.0,0.00016438,2]
[358902615,1745537439153,-504.26822801,0.00016438,2]
[358902616,1745537439164,-246.76921489,0.00016438,2]
[358902617,1745537439175,-500.0,0.00016438,2]
[358902618,1745537439186,-500.0,0.00016438,2]
[358902619,1745537439196,-505.67493771,0.00016438,2]
[358902620,1745537439205,-500.0,0.00016438,2]
[358902621,1745537439215,-500.0,0.00016438,2]
[358902622,1745537439224,-500.0,0.00016438,2]
[358902623,1745537439234,-500.0,0.00016438,2]
[358902624,1745537439244,-500.0,0.00016438,2]
[358902625,1745537439254,-500.0,0.00016438,2]
[358902626,1745537439264,-500.0,0.00016438,2]
[358902627,1745537439273,-500.0,0.00016438,2]
[358902628,1745537439283,-502.75377171,0.00016438,2]
[358902629,1745537439293,-500.0,0.00016438,2]
[358902630,1745537439302,-500.0,0.00016438,2]
[358902631,1745537439312,-500.0,0.00016438,2]
[358902632,1745537439322,-172.09974954,0.00016438,2]
[358902633,1745537439332,-500.0,0.00016438,2]
[358902634,1745537439342,-545.7490967,0.00016438,2]
[358902635,1745537439352,-583.00405154,0.00016438,2]
[358902636,1745537439362,-500.0,0.00016438,2]
[358902637,1745537439372,-500.0,0.00016438,2]
[358902639,1745537439381,-500.0,0.00016438,2]
[358902640,1745537439391,-500.0,0.00016438,2]
[358902641,1745537439401,-500.0,0.00016438,2]
[358902642,1745537439411,-500.0,0.00016438,2]
[358902643,1745537439422,-500.0,0.00016438,2]
[358902644,1745537439431,-500.0,0.00016438,2]
[358902645,1745537439441,-500.0,0.00016438,2]
[358902646,1745537439450,-500.0,0.00016438,2]
[358902647,1745537439460,-502.64389879,0.00016438,2]
[358902648,1745537439470,-500.0,0.00016438,2]
[358902649,1745537439479,-500.0,0.00016438,2]
[358902650,1745537439489,-500.0,0.00016438,2]
[358902651,1745537439498,-500.0,0.00016438,2]
[358902652,1745537439507,-395.69463621,0.00016438,2]
[358902653,1745537439518,-500.0,0.00016438,2]
[358902654,1745537439528,-500.0,0.00016438,2]
[358902655,1745537439538,-502.93607963,0.00016438,2]
[358902656,1745537439547,-573.15,0.00016438,2]
[358902657,1745537439559,-505.20174757,0.00016438,2]
[358902658,1745537439569,-500.0,0.00016438,2]
[358902659,1745537439578,-500.0,0.00016438,2]
[358902660,1745537439588,-852.7,0.00016438,2]
[358902661,1745537439598,-500.0,0.00016438,2]
[358902663,1745537439608,-500.0,0.00016438,2]
[358902664,1745537439618,-500.0,0.00016438,2]
[358902665,1745537439627,-500.0,0.00016438,2]
[358902666,1745537439643,-500.0,0.00016438,2]
[358902667,1745537439653,-510.66063696,0.00016438,2]
[358902668,1745537439663,-500.0,0.00016438,2]
[358902669,1745537439674,-500.0,0.00016438,2]
[358902670,1745537439684,-500.0,0.00016438,2]
[358902671,1745537439694,-614.5441389,0.00016438,2]
[358902672,1745537439703,-519.25,0.00016438,2]
[358902673,1745537439714,-500.0,0.00016438,2]
[358902674,1745537439724,-414.11035688,0.00016438,2]
[358902675,1745537439734,-500.0,0.00016438,2]
[358902676,1745537439743,-998.53,0.00016438,2]
[358902677,1745537439753,-500.0,0.00016438,2]
[358902678,1745537439763,-2262.55,0.00016438,2]
[358902679,1745537439773,-500.0,0.00016438,2]
[358902680,1745537439783,-500.0,0.00016438,2]
[358902681,1745537439792,-500.0,0.00016438,2]
[358902682,1745537439803,-624.52065034,0.00016438,2]
[358902683,1745537439813,-500.0,0.00016438,2]
[358902684,1745537439823,-500.0,0.00016438,2]
[358902685,1745537439833,-500.0,0.00016438,2]
[358902686,1745537439843,-500.0,0.00016438,2]
[358902687,1745537439853,-500.0,0.00016438,2]
[358902688,1745537439862,-500.0,0.00016438,2]
[358902689,1745537439873,-500.0,0.00016438,2]
[358902690,1745537439883,-500.0,0.00016438,2]
[358902691,1745537439893,-500.0,0.00016438,2]
[358902692,1745537439903,-500.0,0.00016438,2]
[358902693,1745537439913,-500.0,0.00016438,2]
[358902694,1745537439924,-500.0,0.00016438,2]
[358902695,1745537439934,-602.6,0.00016438,2]
[358902696,1745537439944,-500.0,0.00016438,2]
[358902697,1745537439954,-500.0,0.00016438,2]
[358902698,1745537439963,-500.0,0.00016438,2]
[358902699,1745537439973,-500.0,0.00016438,2]
[358902700,1745537439983,-500.0,0.00016438,2]
[358902701,1745537439993,-500.0,0.00016438,2]
[358902702,1745537440003,-500.0,0.00016438,2]
[358902703,1745537440012,-500.0,0.00016438,2]
[358902704,1745537440022,-507.99274926,0.00016438,2]
[358902705,1745537440032,-500.0,0.00016438,2]
[358902706,1745537440042,-500.0,0.00016438,2]
[358902707,1745537440052,-506.75712414,0.00016438,2]
[358902708,1745537440061,-500.0,0.00016438,2]
[358902709,1745537440071,-500.0,0.00016438,2]
[358902710,1745537440080,-500.0,0.00016438,2]
[358902711,1745537440090,-505.9759132,0.00016438,2]
[358902712,1745537440100,-500.0,0.00016438,2]